[Event "Titled Tuesday Blitz July 6 2021"]
[White "Przybylski, Wojciech"]
[Black "Wagner, Dennis"]
[WhiteFideId "1117599"]
[BlackFideId "24650684"]
[WhiteElo "2317"]
[BlackElo "2355"]
[Result "0-1"]
[Round "02"]
[TimeControl "180+1"]
[Date "2021.07.06"]
[WhiteClock "0:00:02"]
[BlackClock "0:00:30"]

1. d4 {[%clk 0:03:00]}  Nf6 {[%clk 0:02:59]} 2. Nd2 {[%clk 0:02:55]}  d5 {[%clk 0:02:58]} 3. Ngf3 {[%clk 0:02:55]}  c5 {[%clk 0:02:44]} 4. e3 {[%clk 0:02:51]}  Nc6 {[%clk 0:02:43]} 5. Be2 {[%clk 0:02:51]}  Bf5 {[%clk 0:02:38]} 6. O-O {[%clk 0:02:51]}  e6 {[%clk 0:02:39]} 7. dxc5 {[%clk 0:02:47]}  Bxc5 {[%clk 0:02:38]} 8. Nb3 {[%clk 0:02:47]}  Bb6 {[%clk 0:02:35]} 9. Nbd4 {[%clk 0:02:46]}  Bg6 {[%clk 0:02:35]} 10. Bb5 {[%clk 0:02:43]}  Rc8 {[%clk 0:02:34]} 11. Ne5 {[%clk 0:02:40]}  O-O {[%clk 0:02:27]} 12. Ndxc6 {[%clk 0:02:33]}  bxc6 {[%clk 0:02:25]} 13. Nxg6 {[%clk 0:02:30]}  hxg6 {[%clk 0:02:22]} 14. Ba6 {[%clk 0:02:30]}  Rb8 {[%clk 0:02:22]} 15. b3 {[%clk 0:02:28]}  Qd6 {[%clk 0:02:17]} 16. Bb2 {[%clk 0:02:24]}  Bc7 {[%clk 0:02:17]} 17. g3 {[%clk 0:02:24]}  e5 {[%clk 0:02:17]} 18. Be2 {[%clk 0:02:21]}  Rfe8 {[%clk 0:02:16]} 19. Bf3 {[%clk 0:02:20]}  e4 {[%clk 0:02:09]} 20. Be2 {[%clk 0:02:18]}  Qe6 {[%clk 0:02:08]} 21. Bd4 {[%clk 0:02:16]}  a5 {[%clk 0:02:01]} 22. Kg2 {[%clk 0:02:10]}  Nd7 {[%clk 0:01:55]} 23. Qd2 {[%clk 0:02:04]}  Ne5 {[%clk 0:01:35]} 24. a4 {[%clk 0:01:51]}  g5 {[%clk 0:01:22]} 25. Rab1 {[%clk 0:01:18]}  f5 {[%clk 0:01:13]} 26. c4 {[%clk 0:01:16]}  Nf3 {[%clk 0:01:07]} 27. Qc3 {[%clk 0:00:43]}  Re7 {[%clk 0:00:58]} 28. cxd5 {[%clk 0:00:31]}  cxd5 {[%clk 0:00:57]} 29. b4 {[%clk 0:00:29]}  axb4 {[%clk 0:00:47]} 30. Rxb4 {[%clk 0:00:29]}  Rc8 {[%clk 0:00:48]} 31. Qb2 {[%clk 0:00:26]}  f4 {[%clk 0:00:45]} 32. Rb5 {[%clk 0:00:07]}  Kf7 {[%clk 0:00:43]} 33. Bc5 {[%clk 0:00:03]}  Kg6 {[%clk 0:00:33]} 34. exf4 {[%clk 0:00:03]}  Qh3+ {[%clk 0:00:29]} 35. Kxh3 {[%clk 0:00:02]}  Rh8+ {[%clk 0:00:30]} 0-1


[Site "https://www.chess.com"]

[Event "Titled Tuesday Blitz July 6 2021"]
[White "Reprintsev, Alexander"]
[Black "Erdogdu, Mert"]
[WhiteFideId "14100541"]
[BlackFideId "6301495"]
[WhiteElo "2126"]
[BlackElo "2485"]
[Result "1-0"]
[Round "02"]
[TimeControl "180+1"]
[Date "2021.07.06"]
[WhiteClock "0:00:03"]
[BlackClock "0:00:04"]

1. e4 {[%clk 0:02:26]}  c5 {[%clk 0:02:56]} 2. b3 {[%clk 0:02:25]}  d6 {[%clk 0:02:56]} 3. Bb2 {[%clk 0:02:25]}  Nc6 {[%clk 0:02:52]} 4. Bb5 {[%clk 0:02:25]}  e5 {[%clk 0:02:50]} 5. Ne2 {[%clk 0:02:19]}  Nf6 {[%clk 0:02:49]} 6. Bxc6+ {[%clk 0:02:19]}  bxc6 {[%clk 0:02:49]} 7. d3 {[%clk 0:02:20]}  Be7 {[%clk 0:02:48]} 8. O-O {[%clk 0:02:19]}  O-O {[%clk 0:02:47]} 9. f4 {[%clk 0:02:19]}  exf4 {[%clk 0:02:43]} 10. Nxf4 {[%clk 0:02:19]}  Ng4 {[%clk 0:02:40]} 11. Qe1 {[%clk 0:02:14]}  Bh4 {[%clk 0:02:33]} 12. g3 {[%clk 0:02:14]}  Bf6 {[%clk 0:02:32]} 13. Bc3 {[%clk 0:02:09]}  Bd4+ {[%clk 0:02:19]} 14. Bxd4 {[%clk 0:02:06]}  cxd4 {[%clk 0:02:20]} 15. Ng2 {[%clk 0:02:03]}  a5 {[%clk 0:02:14]} 16. a4 {[%clk 0:02:02]}  Bd7 {[%clk 0:02:00]} 17. Nd2 {[%clk 0:02:02]}  Qg5 {[%clk 0:01:45]} 18. Nf3 {[%clk 0:01:58]}  Qc5 {[%clk 0:01:43]} 19. Qe2 {[%clk 0:01:53]}  Rae8 {[%clk 0:01:42]} 20. h3 {[%clk 0:01:49]}  Ne5 {[%clk 0:01:35]} 21. g4 {[%clk 0:01:37]}  d5 {[%clk 0:01:30]} 22. Rae1 {[%clk 0:00:54]}  dxe4 {[%clk 0:01:18]} 23. Qxe4 {[%clk 0:00:54]}  Nxf3+ {[%clk 0:01:01]} 24. Qxf3 {[%clk 0:00:54]}  Qxc2 {[%clk 0:01:00]} 25. Rxe8 {[%clk 0:00:53]}  Bxe8 {[%clk 0:00:59]} 26. Nf4 {[%clk 0:00:48]}  Bd7 {[%clk 0:00:48]} 27. Qe4 {[%clk 0:00:40]}  Qxb3 {[%clk 0:00:37]} 28. Qxd4 {[%clk 0:00:40]}  Be6 {[%clk 0:00:32]} 29. Nh5 {[%clk 0:00:38]}  f6 {[%clk 0:00:31]} 30. Qd6 {[%clk 0:00:32]}  Qd5 {[%clk 0:00:16]} 31. Qe7 {[%clk 0:00:26]}  Qd4+ {[%clk 0:00:15]} 32. Rf2 {[%clk 0:00:26]}  Bf7 {[%clk 0:00:13]} 33. Nf4 {[%clk 0:00:21]}  Qe5 {[%clk 0:00:12]} 34. Qa7 {[%clk 0:00:15]}  Rb8 {[%clk 0:00:11]} 35. Kg2 {[%clk 0:00:14]}  Bd5+ {[%clk 0:00:08]} 36. Nxd5 {[%clk 0:00:14]}  Qxd5+ {[%clk 0:00:09]} 37. Kh2 {[%clk 0:00:13]}  Qe5+ {[%clk 0:00:09]} 38. Kg2 {[%clk 0:00:12]}  Rb1 {[%clk 0:00:08]} 39. Qa8+ {[%clk 0:00:10]}  Kf7 {[%clk 0:00:08]} 40. Qxc6 {[%clk 0:00:11]}  Qe1 {[%clk 0:00:06]} 41. Qc4+ {[%clk 0:00:10]}  Kf8 {[%clk 0:00:06]} 42. Qc8+ {[%clk 0:00:10]}  Kf7 {[%clk 0:00:07]} 43. Qc4+ {[%clk 0:00:10]}  Qe6 {[%clk 0:00:06]} 44. Qxe6+ {[%clk 0:00:09]}  Kxe6 {[%clk 0:00:06]} 45. Rf5 {[%clk 0:00:10]}  Rd1 {[%clk 0:00:06]} 46. Rxa5 {[%clk 0:00:10]}  Rxd3 {[%clk 0:00:07]} 47. Ra7 {[%clk 0:00:11]}  g5 {[%clk 0:00:07]} 48. Rxh7 {[%clk 0:00:10]}  Ra3 {[%clk 0:00:07]} 49. Ra7 {[%clk 0:00:09]}  Ke5 {[%clk 0:00:08]} 50. Ra6 {[%clk 0:00:10]}  f5 {[%clk 0:00:07]} 51. Ra5+ {[%clk 0:00:09]}  Ke4 {[%clk 0:00:06]} 52. gxf5 {[%clk 0:00:09]}  Kf4 {[%clk 0:00:07]} 53. f6 {[%clk 0:00:09]}  Ra2+ {[%clk 0:00:07]} 54. Kf1 {[%clk 0:00:09]}  Ke3 {[%clk 0:00:04]} 55. Kg1 {[%clk 0:00:07]}  Rf2 {[%clk 0:00:04]} 56. Re5+ {[%clk 0:00:04]}  Kd4 {[%clk 0:00:04]} 57. Kxf2 {[%clk 0:00:03]} 1-0


[Site "https://www.chess.com"]

[Event "Titled Tuesday Blitz July 6 2021"]
[White "Sammed_Shete"]
[Black "Nakamura, Hikaru"]
[BlackFideId "2016192"]
[WhiteElo "2584"]
[BlackElo "2900"]
[Result "0-1"]
[Round "02"]
[TimeControl "180+1"]
[Date "2021.07.06"]
[WhiteClock "0:00:02"]
[BlackClock "0:01:41"]

1. e4 {[%clk 0:03:00]}  d5 {[%clk 0:02:58]} 2. exd5 {[%clk 0:03:00]}  Qxd5 {[%clk 0:02:59]} 3. Nf3 {[%clk 0:02:59]}  Bg4 {[%clk 0:02:58]} 4. Be2 {[%clk 0:03:00]}  Nc6 {[%clk 0:02:58]} 5. Nc3 {[%clk 0:02:57]}  Qd7 {[%clk 0:02:55]} 6. O-O {[%clk 0:02:55]}  Rd8 {[%clk 0:02:47]} 7. d3 {[%clk 0:02:49]}  Nf6 {[%clk 0:02:44]} 8. Bf4 {[%clk 0:02:44]}  e6 {[%clk 0:02:43]} 9. Ne5 {[%clk 0:02:40]}  Nxe5 {[%clk 0:02:42]} 10. Bxe5 {[%clk 0:02:39]}  Bxe2 {[%clk 0:02:42]} 11. Qxe2 {[%clk 0:02:39]}  Bd6 {[%clk 0:02:42]} 12. Bxd6 {[%clk 0:02:23]}  cxd6 {[%clk 0:02:39]} 13. d4 {[%clk 0:02:17]}  d5 {[%clk 0:02:37]} 14. Nd1 {[%clk 0:01:53]}  O-O {[%clk 0:02:33]} 15. f3 {[%clk 0:01:43]}  b5 {[%clk 0:02:33]} 16. Nf2 {[%clk 0:01:39]}  Qc7 {[%clk 0:02:30]} 17. a3 {[%clk 0:01:34]}  Qb6 {[%clk 0:02:29]} 18. c3 {[%clk 0:01:32]}  a5 {[%clk 0:02:29]} 19. Nd3 {[%clk 0:01:32]}  Ne8 {[%clk 0:02:30]} 20. Kh1 {[%clk 0:01:28]}  Nd6 {[%clk 0:02:29]} 21. b4 {[%clk 0:01:27]}  a4 {[%clk 0:02:23]} 22. Nc5 {[%clk 0:01:26]}  Nc4 {[%clk 0:02:23]} 23. f4 {[%clk 0:01:21]}  Rfe8 {[%clk 0:02:21]} 24. Rf3 {[%clk 0:01:19]}  f6 {[%clk 0:02:21]} 25. Rg3 {[%clk 0:01:18]}  e5 {[%clk 0:02:19]} 26. Qg4 {[%clk 0:01:14]}  Re7 {[%clk 0:02:19]} 27. dxe5 {[%clk 0:01:05]}  fxe5 {[%clk 0:02:19]} 28. f5 {[%clk 0:01:05]}  Qf6 {[%clk 0:02:12]} 29. Ne6 {[%clk 0:00:45]}  Rc8 {[%clk 0:02:10]} 30. Qh3 {[%clk 0:00:22]}  Nd6 {[%clk 0:02:05]} 31. Ng5 {[%clk 0:00:17]}  Qxf5 {[%clk 0:02:01]} 32. Rg4 {[%clk 0:00:13]}  Rf8 {[%clk 0:01:56]} 33. Rg1 {[%clk 0:00:12]}  e4 {[%clk 0:01:50]} 34. Qg3 {[%clk 0:00:09]}  Nc4 {[%clk 0:01:45]} 35. Nh3 {[%clk 0:00:08]}  Qe5 {[%clk 0:01:42]} 36. Nf4 {[%clk 0:00:07]}  e3 {[%clk 0:01:41]} 37. Re1 {[%clk 0:00:03]}  Ref7 {[%clk 0:01:40]} 38. Ne2 {[%clk 0:00:01]}  Rf1+ {[%clk 0:01:39]} 39. Rxf1 {[%clk 0:00:01]}  Rxf1+ {[%clk 0:01:40]} 40. Ng1 {[%clk 0:00:02]}  Qxg3 {[%clk 0:01:41]} 0-1


[Site "https://www.chess.com"]

[Event "Titled Tuesday Blitz July 6 2021"]
[White "Sargissyan, Sargis"]
[Black "Balaji, Aaravamudhan"]
[WhiteFideId "13303210"]
[BlackFideId "436224"]
[WhiteElo "2174"]
[BlackElo "2085"]
[Result "0-1"]
[Round "02"]
[TimeControl "180+1"]
[Date "2021.07.06"]
[WhiteClock "0:00:04"]
[BlackClock "0:00:17"]

1. c4 {[%clk 0:03:00]}  c6 {[%clk 0:03:00]} 2. b3 {[%clk 0:02:58]}  d5 {[%clk 0:03:01]} 3. Bb2 {[%clk 0:02:59]}  Nf6 {[%clk 0:03:01]} 4. Nf3 {[%clk 0:02:59]}  e6 {[%clk 0:03:01]} 5. g3 {[%clk 0:02:59]}  Bd6 {[%clk 0:03:02]} 6. Bg2 {[%clk 0:02:59]}  O-O {[%clk 0:03:02]} 7. O-O {[%clk 0:02:59]}  Nbd7 {[%clk 0:03:03]} 8. d3 {[%clk 0:02:54]}  b6 {[%clk 0:03:02]} 9. Nbd2 {[%clk 0:02:53]}  Bb7 {[%clk 0:03:02]} 10. e4 {[%clk 0:02:50]}  dxe4 {[%clk 0:03:03]} 11. dxe4 {[%clk 0:02:51]}  Qc7 {[%clk 0:03:03]} 12. Re1 {[%clk 0:02:50]}  Ng4 {[%clk 0:02:17]} 13. h3 {[%clk 0:02:37]}  Nge5 {[%clk 0:02:16]} 14. Qe2 {[%clk 0:02:37]}  Rad8 {[%clk 0:02:15]} 15. Rad1 {[%clk 0:02:30]}  a5 {[%clk 0:02:13]} 16. Nh2 {[%clk 0:02:15]}  Nc5 {[%clk 0:02:11]} 17. Ndf3 {[%clk 0:02:04]}  Ba6 {[%clk 0:02:04]} 18. Nd4 {[%clk 0:01:43]}  Ng6 {[%clk 0:01:57]} 19. f4 {[%clk 0:01:42]}  Rfe8 {[%clk 0:01:29]} 20. e5 {[%clk 0:01:37]}  Bf8 {[%clk 0:01:23]} 21. Nxc6 {[%clk 0:01:34]}  Rxd1 {[%clk 0:01:22]} 22. Rxd1 {[%clk 0:01:35]}  Bb7 {[%clk 0:01:23]} 23. Nd4 {[%clk 0:01:33]}  Rd8 {[%clk 0:01:22]} 24. Bxb7 {[%clk 0:01:11]}  Nxb7 {[%clk 0:01:22]} 25. Nb5 {[%clk 0:01:07]}  Bc5+ {[%clk 0:01:21]} 26. Bd4 {[%clk 0:01:04]}  Bxd4+ {[%clk 0:01:12]} 27. Rxd4 {[%clk 0:01:02]}  Qc5 {[%clk 0:01:12]} 28. Qf2 {[%clk 0:00:59]}  Qc6 {[%clk 0:00:58]} 29. Rxd8+ {[%clk 0:00:54]}  Nxd8 {[%clk 0:00:59]} 30. Nd6 {[%clk 0:00:48]}  Nb7 {[%clk 0:00:57]} 31. Qg2 {[%clk 0:00:43]}  Qc5+ {[%clk 0:00:55]} 32. Qf2 {[%clk 0:00:43]}  Nxd6 {[%clk 0:00:46]} 33. Qxc5 {[%clk 0:00:42]}  bxc5 {[%clk 0:00:47]} 34. exd6 {[%clk 0:00:42]}  Kf8 {[%clk 0:00:47]} 35. Nf3 {[%clk 0:00:42]}  Ke8 {[%clk 0:00:47]} 36. Ne5 {[%clk 0:00:40]}  Nxe5 {[%clk 0:00:46]} 37. fxe5 {[%clk 0:00:39]}  Kd7 {[%clk 0:00:46]} 38. Kf2 {[%clk 0:00:36]}  f6 {[%clk 0:00:46]} 39. Kf3 {[%clk 0:00:26]}  fxe5 {[%clk 0:00:27]} 40. Ke4 {[%clk 0:00:25]}  Kxd6 {[%clk 0:00:27]} 41. a3 {[%clk 0:00:18]}  h5 {[%clk 0:00:24]} 42. h4 {[%clk 0:00:15]}  g6 {[%clk 0:00:22]} 43. Kf3 {[%clk 0:00:11]}  Ke7 {[%clk 0:00:17]} 44. Ke3 {[%clk 0:00:11]}  Kf7 {[%clk 0:00:16]} 45. Ke4 {[%clk 0:00:11]}  Kf6 {[%clk 0:00:16]} 46. Ke3 {[%clk 0:00:07]}  Kf5 {[%clk 0:00:15]} 47. b4 {[%clk 0:00:05]}  cxb4 {[%clk 0:00:16]} 48. axb4 {[%clk 0:00:05]}  axb4 {[%clk 0:00:17]} 49. c5 {[%clk 0:00:05]}  Kf6 {[%clk 0:00:17]} 50. c6 {[%clk 0:00:04]}  Ke7 {[%clk 0:00:17]} 0-1


[Site "https://www.chess.com"]

[Event "Titled Tuesday Blitz July 6 2021"]
[White "Senthil Maran K"]
[Black "Khusnutdinov, Rustam"]
[WhiteFideId "25035681"]
[BlackFideId "13701703"]
[WhiteElo "2194"]
[BlackElo "2571"]
[Result "0-1"]
[Round "02"]
[TimeControl "180+1"]
[Date "2021.07.06"]
[WhiteClock "0:00:01"]
[BlackClock "0:01:21"]

1. d4 {[%clk 0:03:00]}  d5 {[%clk 0:02:58]} 2. Nf3 {[%clk 0:03:01]}  e6 {[%clk 0:02:57]} 3. g3 {[%clk 0:03:00]}  b5 {[%clk 0:02:56]} 4. Bg2 {[%clk 0:03:00]}  Bb7 {[%clk 0:02:55]} 5. O-O {[%clk 0:03:00]}  Nd7 {[%clk 0:02:54]} 6. a4 {[%clk 0:02:59]}  b4 {[%clk 0:02:54]} 7. c4 {[%clk 0:02:59]}  bxc3 {[%clk 0:02:53]} 8. Nxc3 {[%clk 0:03:00]}  Ngf6 {[%clk 0:02:51]} 9. Bf4 {[%clk 0:03:00]}  Bd6 {[%clk 0:02:39]} 10. Bxd6 {[%clk 0:02:24]}  cxd6 {[%clk 0:02:40]} 11. Qb3 {[%clk 0:02:07]}  Qb8 {[%clk 0:02:36]} 12. Qa3 {[%clk 0:01:53]}  O-O {[%clk 0:02:35]} 13. Nb5 {[%clk 0:01:53]}  Ne4 {[%clk 0:02:32]} 14. Rfc1 {[%clk 0:01:49]}  a6 {[%clk 0:02:20]} 15. Nc3 {[%clk 0:01:37]}  Rc8 {[%clk 0:02:18]} 16. Nxe4 {[%clk 0:01:34]}  dxe4 {[%clk 0:02:19]} 17. Nd2 {[%clk 0:01:32]}  d5 {[%clk 0:02:16]} 18. e3 {[%clk 0:01:16]}  a5 {[%clk 0:02:12]} 19. Rc3 {[%clk 0:01:11]}  Ba6 {[%clk 0:02:07]} 20. Rac1 {[%clk 0:01:09]}  Rxc3 {[%clk 0:01:58]} 21. Qxc3 {[%clk 0:01:08]}  Qb6 {[%clk 0:01:56]} 22. Nb3 {[%clk 0:00:47]}  Rc8 {[%clk 0:01:38]} 23. Qxc8+ {[%clk 0:00:45]}  Bxc8 {[%clk 0:01:37]} 24. Rxc8+ {[%clk 0:00:46]}  Nf8 {[%clk 0:01:38]} 25. Nc5 {[%clk 0:00:46]}  Qd6 {[%clk 0:01:33]} 26. Bf1 {[%clk 0:00:26]}  g5 {[%clk 0:01:32]} 27. Ra8 {[%clk 0:00:21]}  Qc7 {[%clk 0:01:28]} 28. Bb5 {[%clk 0:00:15]}  Kg7 {[%clk 0:01:28]} 29. Kg2 {[%clk 0:00:10]}  e5 {[%clk 0:01:26]} 30. Nb3 {[%clk 0:00:08]}  Qc2 {[%clk 0:01:22]} 31. Nc5 {[%clk 0:00:06]}  exd4 {[%clk 0:01:22]} 32. exd4 {[%clk 0:00:06]}  e3 {[%clk 0:01:23]} 33. Nd3 {[%clk 0:00:06]}  e2 {[%clk 0:01:21]} 34. Re8 {[%clk 0:00:05]}  Ne6 {[%clk 0:01:21]} 35. h4 {[%clk 0:00:04]}  Qxd3 {[%clk 0:01:21]} 36. Bxd3 {[%clk 0:00:02]}  e1=Q {[%clk 0:01:21]} 37. hxg5 {[%clk 0:00:02]}  Qd2 {[%clk 0:01:21]} 38. Bf5 {[%clk 0:00:02]}  Nxd4 {[%clk 0:01:22]} 39. Bg4 {[%clk 0:00:01]}  Qxg5 {[%clk 0:01:21]} 40. Bd1 {[%clk 0:00:01]}  Qd2 {[%clk 0:01:22]} 41. Bg4 {[%clk 0:00:01]}  Qxb2 {[%clk 0:01:21]} 0-1


[Site "https://www.chess.com"]

[Event "Titled Tuesday Blitz July 6 2021"]
[White "Shevelev, Dmitry"]
[Black "Lodici, Lorenzo"]
[WhiteFideId "24233463"]
[BlackFideId "884189"]
[WhiteElo "2467"]
[BlackElo "2265"]
[Result "0-1"]
[Round "02"]
[TimeControl "180+1"]
[Date "2021.07.06"]
[WhiteClock "0:00:08"]
[BlackClock "0:01:03"]

1. d4 {[%clk 0:03:00]}  Nf6 {[%clk 0:02:57]} 2. Nf3 {[%clk 0:03:00]}  b6 {[%clk 0:02:56]} 3. Nc3 {[%clk 0:03:00]}  Bb7 {[%clk 0:02:55]} 4. Bg5 {[%clk 0:03:00]}  Ne4 {[%clk 0:02:54]} 5. Nxe4 {[%clk 0:02:59]}  Bxe4 {[%clk 0:02:55]} 6. e3 {[%clk 0:03:00]}  c5 {[%clk 0:02:55]} 7. Bd3 {[%clk 0:02:59]}  Bxd3 {[%clk 0:02:54]} 8. Qxd3 {[%clk 0:03:00]}  Nc6 {[%clk 0:02:54]} 9. O-O-O {[%clk 0:02:42]}  Qc7 {[%clk 0:02:51]} 10. Kb1 {[%clk 0:02:06]}  e6 {[%clk 0:02:27]} 11. e4 {[%clk 0:01:55]}  cxd4 {[%clk 0:02:18]} 12. Nxd4 {[%clk 0:01:54]}  Nxd4 {[%clk 0:02:08]} 13. Qxd4 {[%clk 0:01:53]}  f6 {[%clk 0:02:08]} 14. Bf4 {[%clk 0:01:41]}  Qc6 {[%clk 0:02:06]} 15. e5 {[%clk 0:01:22]}  f5 {[%clk 0:02:03]} 16. Rhg1 {[%clk 0:00:56]}  Rc8 {[%clk 0:01:58]} 17. Rd2 {[%clk 0:00:50]}  Be7 {[%clk 0:01:48]} 18. g4 {[%clk 0:00:45]}  g5 {[%clk 0:01:43]} 19. gxf5 {[%clk 0:00:40]}  gxf4 {[%clk 0:01:43]} 20. f6 {[%clk 0:00:32]}  Bc5 {[%clk 0:01:39]} 21. Qxf4 {[%clk 0:00:32]}  Kd8 {[%clk 0:01:36]} 22. a3 {[%clk 0:00:31]}  Kc7 {[%clk 0:01:34]} 23. Rg7 {[%clk 0:00:29]}  Rcd8 {[%clk 0:01:33]} 24. Rd3 {[%clk 0:00:16]}  Kb8 {[%clk 0:01:26]} 25. b4 {[%clk 0:00:15]}  Bf8 {[%clk 0:01:23]} 26. Rf7 {[%clk 0:00:16]}  d5 {[%clk 0:01:20]} 27. Kb2 {[%clk 0:00:12]}  Rc8 {[%clk 0:01:18]} 28. Qd2 {[%clk 0:00:11]}  Bh6 {[%clk 0:01:08]} 29. Qc3 {[%clk 0:00:11]}  Qxc3+ {[%clk 0:01:05]} 30. Rxc3 {[%clk 0:00:12]}  Bf4 {[%clk 0:01:05]} 31. Rxc8+ {[%clk 0:00:08]}  Rxc8 {[%clk 0:01:03]} 0-1


[Site "https://www.chess.com"]

[Event "Titled Tuesday Blitz July 6 2021"]
[White "Sieciechowicz, Marcin"]
[Black "Nabaty, Tamir"]
[WhiteFideId "1130170"]
[BlackFideId "2809052"]
[WhiteElo "2302"]
[BlackElo "2627"]
[Result "0-1"]
[Round "02"]
[TimeControl "180+1"]
[Date "2021.07.06"]
[WhiteClock "0:00:03"]
[BlackClock "0:00:07"]

1. d4 {[%clk 0:03:00]}  d5 {[%clk 0:02:59]} 2. c4 {[%clk 0:03:01]}  dxc4 {[%clk 0:03:00]} 3. e4 {[%clk 0:02:58]}  e5 {[%clk 0:02:58]} 4. Nf3 {[%clk 0:02:56]}  Bb4+ {[%clk 0:02:58]} 5. Nc3 {[%clk 0:02:54]}  exd4 {[%clk 0:02:54]} 6. Qxd4 {[%clk 0:02:53]}  Qxd4 {[%clk 0:02:52]} 7. Nxd4 {[%clk 0:02:53]}  Ne7 {[%clk 0:02:52]} 8. Bxc4 {[%clk 0:02:53]}  Nbc6 {[%clk 0:02:52]} 9. Nxc6 {[%clk 0:02:50]}  Nxc6 {[%clk 0:02:53]} 10. O-O {[%clk 0:02:50]}  Be6 {[%clk 0:02:42]} 11. Nd5 {[%clk 0:02:25]}  Bd6 {[%clk 0:02:32]} 12. Be3 {[%clk 0:02:23]}  O-O-O {[%clk 0:02:19]} 13. Rac1 {[%clk 0:02:19]}  Kb8 {[%clk 0:02:17]} 14. a3 {[%clk 0:02:18]}  Rhe8 {[%clk 0:02:16]} 15. Rfd1 {[%clk 0:02:16]}  Ne5 {[%clk 0:02:14]} 16. Be2 {[%clk 0:02:07]}  Ng4 {[%clk 0:02:14]} 17. Bxg4 {[%clk 0:02:04]}  Bxg4 {[%clk 0:02:15]} 18. f3 {[%clk 0:02:04]}  Be6 {[%clk 0:02:15]} 19. Nf4 {[%clk 0:01:51]}  Bc8 {[%clk 0:02:00]} 20. Kf2 {[%clk 0:01:45]}  b6 {[%clk 0:01:46]} 21. Rd2 {[%clk 0:01:36]}  f5 {[%clk 0:01:28]} 22. exf5 {[%clk 0:01:14]}  Bxf5 {[%clk 0:01:29]} 23. Rcd1 {[%clk 0:01:09]}  Rxe3 {[%clk 0:01:18]} 24. Kxe3 {[%clk 0:00:48]}  Re8+ {[%clk 0:01:16]} 25. Kf2 {[%clk 0:00:47]}  Bxf4 {[%clk 0:01:12]} 26. Rd8+ {[%clk 0:00:48]}  Rxd8 {[%clk 0:01:12]} 27. Rxd8+ {[%clk 0:00:48]}  Bc8 {[%clk 0:01:10]} 28. Re8 {[%clk 0:00:40]}  Kb7 {[%clk 0:01:07]} 29. Re7 {[%clk 0:00:36]}  Bh6 {[%clk 0:00:52]} 30. g3 {[%clk 0:00:32]}  Kc6 {[%clk 0:00:51]} 31. f4 {[%clk 0:00:32]}  Kd6 {[%clk 0:00:51]} 32. Re8 {[%clk 0:00:29]}  Bd7 {[%clk 0:00:45]} 33. Rh8 {[%clk 0:00:28]}  Bf5 {[%clk 0:00:45]} 34. h3 {[%clk 0:00:27]}  g5 {[%clk 0:00:39]} 35. g4 {[%clk 0:00:26]}  Bg7 {[%clk 0:00:33]} 36. Rd8+ {[%clk 0:00:19]}  Ke7 {[%clk 0:00:33]} 37. Ra8 {[%clk 0:00:16]}  Be4 {[%clk 0:00:22]} 38. Rxa7 {[%clk 0:00:16]}  Bd4+ {[%clk 0:00:17]} 39. Kg3 {[%clk 0:00:15]}  Kd6 {[%clk 0:00:17]} 40. fxg5 {[%clk 0:00:14]}  Be5+ {[%clk 0:00:17]} 41. Kh4 {[%clk 0:00:13]}  Bxb2 {[%clk 0:00:17]} 42. a4 {[%clk 0:00:12]}  c5 {[%clk 0:00:17]} 43. a5 {[%clk 0:00:06]}  bxa5 {[%clk 0:00:17]} 44. Rxa5 {[%clk 0:00:06]}  c4 {[%clk 0:00:17]} 45. Ra4 {[%clk 0:00:06]}  Kc5 {[%clk 0:00:16]} 46. Ra7 {[%clk 0:00:05]}  c3 {[%clk 0:00:14]} 47. Rc7+ {[%clk 0:00:05]}  Kd4 {[%clk 0:00:14]} 48. Kh5 {[%clk 0:00:04]}  c2 {[%clk 0:00:14]} 49. Rxc2 {[%clk 0:00:02]}  Bxc2 {[%clk 0:00:15]} 50. Kh6 {[%clk 0:00:02]}  Ke3 {[%clk 0:00:15]} 51. h4 {[%clk 0:00:03]}  Kf4 {[%clk 0:00:13]} 52. h5 {[%clk 0:00:04]}  Kxg4 {[%clk 0:00:13]} 53. g6 {[%clk 0:00:04]}  Bc1+ {[%clk 0:00:05]} 54. Kxh7 {[%clk 0:00:03]}  Kxh5 {[%clk 0:00:05]} 55. Kh8 {[%clk 0:00:02]}  Kxg6 {[%clk 0:00:05]} 56. Kg8 {[%clk 0:00:01]}  Bh6 {[%clk 0:00:05]} 57. Kh8 {[%clk 0:00:02]}  Bg7+ {[%clk 0:00:06]} 58. Kg8 {[%clk 0:00:03]}  Bb3# {[%clk 0:00:07]} 0-1


[Site "https://www.chess.com"]

[Event "Titled Tuesday Blitz July 6 2021"]
[White "Solovchuk, Oleksiy"]
[Black "Vidit, Santosh Gujrathi"]
[WhiteFideId "14115220"]
[BlackFideId "5029465"]
[WhiteElo "2379"]
[BlackElo "2735"]
[Result "0-1"]
[Round "02"]
[TimeControl "180+1"]
[Date "2021.07.06"]
[WhiteClock "0:00:04"]
[BlackClock "0:00:04"]

1. e4 {[%clk 0:03:00]}  e5 {[%clk 0:02:59]} 2. Nf3 {[%clk 0:02:58]}  Nc6 {[%clk 0:02:59]} 3. Bb5 {[%clk 0:02:57]}  a6 {[%clk 0:02:59]} 4. Ba4 {[%clk 0:02:57]}  Nf6 {[%clk 0:02:59]} 5. d3 {[%clk 0:02:55]}  d6 {[%clk 0:02:58]} 6. O-O {[%clk 0:02:54]}  g6 {[%clk 0:02:56]} 7. h3 {[%clk 0:02:54]}  Bg7 {[%clk 0:02:56]} 8. Bxc6+ {[%clk 0:02:53]}  bxc6 {[%clk 0:02:56]} 9. c4 {[%clk 0:02:52]}  O-O {[%clk 0:02:55]} 10. Bg5 {[%clk 0:02:49]}  h6 {[%clk 0:02:55]} 11. Be3 {[%clk 0:02:47]}  c5 {[%clk 0:02:40]} 12. Nc3 {[%clk 0:02:46]}  Ne8 {[%clk 0:02:32]} 13. Qd2 {[%clk 0:02:44]}  Kh7 {[%clk 0:02:31]} 14. Nh2 {[%clk 0:02:39]}  f5 {[%clk 0:02:25]} 15. exf5 {[%clk 0:02:39]}  Bxf5 {[%clk 0:02:15]} 16. Ng4 {[%clk 0:02:38]}  g5 {[%clk 0:02:04]} 17. Ne4 {[%clk 0:02:30]}  c6 {[%clk 0:01:53]} 18. Rac1 {[%clk 0:02:28]}  Rb8 {[%clk 0:01:51]} 19. f3 {[%clk 0:02:25]}  Nc7 {[%clk 0:01:50]} 20. a3 {[%clk 0:02:15]}  Ne6 {[%clk 0:01:10]} 21. b4 {[%clk 0:02:10]}  cxb4 {[%clk 0:01:11]} 22. axb4 {[%clk 0:02:09]}  Nf4 {[%clk 0:01:11]} 23. c5 {[%clk 0:01:49]}  d5 {[%clk 0:01:10]} 24. Bxf4 {[%clk 0:01:48]}  dxe4 {[%clk 0:00:55]} 25. Bxe5 {[%clk 0:01:40]}  Bxe5 {[%clk 0:00:54]} 26. Nxe5 {[%clk 0:01:35]}  Qd4+ {[%clk 0:00:54]} 27. Kh1 {[%clk 0:01:30]}  Qxe5 {[%clk 0:00:52]} 28. dxe4 {[%clk 0:01:24]}  Rbd8 {[%clk 0:00:42]} 29. Qc3 {[%clk 0:01:17]}  Qxc3 {[%clk 0:00:41]} 30. Rxc3 {[%clk 0:01:18]}  Bc8 {[%clk 0:00:40]} 31. Rc4 {[%clk 0:00:59]}  Kg7 {[%clk 0:00:38]} 32. Kg1 {[%clk 0:00:56]}  Kf6 {[%clk 0:00:37]} 33. f4 {[%clk 0:00:54]}  gxf4 {[%clk 0:00:25]} 34. Rxf4+ {[%clk 0:00:55]}  Ke7 {[%clk 0:00:20]} 35. Rh4 {[%clk 0:00:49]}  Rf6 {[%clk 0:00:20]} 36. e5 {[%clk 0:00:48]}  Rg6 {[%clk 0:00:20]} 37. Rcd4 {[%clk 0:00:43]}  Be6 {[%clk 0:00:19]} 38. Rd6 {[%clk 0:00:42]}  Rdg8 {[%clk 0:00:19]} 39. g4 {[%clk 0:00:39]}  Rc8 {[%clk 0:00:13]} 40. Kf2 {[%clk 0:00:36]}  Rb8 {[%clk 0:00:06]} 41. Rxc6 {[%clk 0:00:33]}  Rxb4 {[%clk 0:00:07]} 42. Rxa6 {[%clk 0:00:33]}  Rb2+ {[%clk 0:00:05]} 43. Ke3 {[%clk 0:00:32]}  Rb3+ {[%clk 0:00:05]} 44. Kd2 {[%clk 0:00:25]}  Rb4 {[%clk 0:00:02]} 45. Rh5 {[%clk 0:00:14]}  Rc4 {[%clk 0:00:01]} 46. c6 {[%clk 0:00:12]}  Bc8 {[%clk 0:00:02]} 47. Ra7+ {[%clk 0:00:11]}  Kd8 {[%clk 0:00:02]} 48. Rh7 {[%clk 0:00:10]}  Rcxc6 {[%clk 0:00:02]} 49. Ke3 {[%clk 0:00:09]}  Bd7 {[%clk 0:00:03]} 50. Kd4 {[%clk 0:00:07]}  Rge6 {[%clk 0:00:03]} 51. Kd5 {[%clk 0:00:07]}  Ra6 {[%clk 0:00:03]} 52. Kd4 {[%clk 0:00:06]}  Kc7 {[%clk 0:00:03]} 53. h4 {[%clk 0:00:04]}  Ra4+ {[%clk 0:00:04]} 0-1


[Site "https://www.chess.com"]